[Event "Titled Tuesday Blitz July 4 Early 2023"]
[White "Papasimakopoulos, Alexandros"]
[Black "Richter, Paul"]
[WhiteFideId "4244125"]
[BlackFideId "2046350"]
[WhiteElo "2699"]
[BlackElo "2537"]
[Result "1/2-1/2"]
[Round "4"]
[TimeControl "180+2"]
[Date "2023.07.04"]
[WhiteClock "0:00:18"]
[BlackClock "0:00:03"]
[Board "68"]

1. d4 {[%clk 0:03:00]}  Nf6 {[%clk 0:02:59]} 2. c4 {[%clk 0:03:00]}  g6 {[%clk 0:02:59]} 3. Nc3 {[%clk 0:03:01]}  Bg7 {[%clk 0:02:59]} 4. Bg5 {[%clk 0:02:58]}  O-O {[%clk 0:02:59]} 5. e3 {[%clk 0:02:58]}  d6 {[%clk 0:02:59]} 6. Nf3 {[%clk 0:02:58]}  Nbd7 {[%clk 0:02:58]} 7. Be2 {[%clk 0:02:58]}  e5 {[%clk 0:02:57]} 8. dxe5 {[%clk 0:02:55]}  dxe5 {[%clk 0:02:58]} 9. Nd2 {[%clk 0:02:56]}  h6 {[%clk 0:02:57]} 10. Bh4 {[%clk 0:02:54]}  c6 {[%clk 0:02:50]} 11. O-O {[%clk 0:02:54]}  Qc7 {[%clk 0:02:28]} 12. Qc2 {[%clk 0:02:45]}  a5 {[%clk 0:02:19]} 13. a3 {[%clk 0:02:45]}  Nc5 {[%clk 0:02:16]} 14. b4 {[%clk 0:02:44]}  axb4 {[%clk 0:02:17]} 15. axb4 {[%clk 0:02:44]}  Rxa1 {[%clk 0:02:18]} 16. Rxa1 {[%clk 0:02:44]}  Na6 {[%clk 0:02:05]} 17. Rb1 {[%clk 0:02:38]}  Bf5 {[%clk 0:02:03]} 18. e4 {[%clk 0:02:32]}  Be6 {[%clk 0:02:00]} 19. c5 {[%clk 0:02:30]}  b5 {[%clk 0:01:37]} 20. cxb6 {[%clk 0:02:25]}  Qxb6 {[%clk 0:01:37]} 21. Na4 {[%clk 0:02:26]}  Qb7 {[%clk 0:01:14]} 22. Bxa6 {[%clk 0:02:19]}  Qxa6 {[%clk 0:01:15]} 23. Nc5 {[%clk 0:02:19]}  Qa2 {[%clk 0:01:14]} 24. Qxa2 {[%clk 0:02:13]}  Bxa2 {[%clk 0:01:15]} 25. Ra1 {[%clk 0:02:13]}  Be6 {[%clk 0:00:55]} 26. Bxf6 {[%clk 0:02:10]}  Bxf6 {[%clk 0:00:54]} 27. Nxe6 {[%clk 0:02:10]}  fxe6 {[%clk 0:00:55]} 28. Nc4 {[%clk 0:01:51]}  Rb8 {[%clk 0:00:54]} 29. Ra4 {[%clk 0:01:48]}  c5 {[%clk 0:00:47]} 30. Na5 {[%clk 0:01:34]}  Rxb4 {[%clk 0:00:42]} 31. Rxb4 {[%clk 0:01:34]}  cxb4 {[%clk 0:00:43]} 32. Kf1 {[%clk 0:01:34]}  Be7 {[%clk 0:00:39]} 33. Ke2 {[%clk 0:01:31]}  Kf7 {[%clk 0:00:39]} 34. Kd3 {[%clk 0:01:30]}  Bc5 {[%clk 0:00:37]} 35. f3 {[%clk 0:01:30]}  h5 {[%clk 0:00:34]} 36. Kc4 {[%clk 0:01:29]}  Bd6 {[%clk 0:00:34]} 37. Nc6 {[%clk 0:01:28]}  g5 {[%clk 0:00:30]} 38. Nxb4 {[%clk 0:01:27]}  g4 {[%clk 0:00:22]} 39. fxg4 {[%clk 0:01:26]}  hxg4 {[%clk 0:00:23]} 40. Nd3 {[%clk 0:01:25]}  Kf6 {[%clk 0:00:23]} 41. Kb5 {[%clk 0:01:21]}  Bb8 {[%clk 0:00:19]} 42. Kb6 {[%clk 0:01:19]}  Bd6 {[%clk 0:00:18]} 43. Kc6 {[%clk 0:01:16]}  Bb8 {[%clk 0:00:18]} 44. Kb6 {[%clk 0:01:09]}  Bd6 {[%clk 0:00:17]} 45. Kb7 {[%clk 0:00:49]}  Be7 {[%clk 0:00:14]} 46. Kc7 {[%clk 0:00:48]}  Bf8 {[%clk 0:00:08]} 47. Kd7 {[%clk 0:00:47]}  Bh6 {[%clk 0:00:08]} 48. Nc5 {[%clk 0:00:43]}  Bf4 {[%clk 0:00:08]} 49. h3 {[%clk 0:00:40]}  gxh3 {[%clk 0:00:09]} 50. gxh3 {[%clk 0:00:39]}  Kg5 {[%clk 0:00:10]} 51. Kxe6 {[%clk 0:00:31]}  Kh4 {[%clk 0:00:09]} 52. Nd3 {[%clk 0:00:31]}  Kxh3 {[%clk 0:00:09]} 53. Kf5 {[%clk 0:00:28]}  Bh2 {[%clk 0:00:08]} 54. Nxe5 {[%clk 0:00:27]}  Bg3 {[%clk 0:00:08]} 55. Ng6 {[%clk 0:00:25]}  Bc7 {[%clk 0:00:07]} 56. Nf4+ {[%clk 0:00:23]}  Kh4 {[%clk 0:00:06]} 57. Nd5 {[%clk 0:00:23]}  Bb8 {[%clk 0:00:06]} 58. Ne7 {[%clk 0:00:23]}  Kh5 {[%clk 0:00:05]} 59. Nc6 {[%clk 0:00:23]}  Bc7 {[%clk 0:00:05]} 60. Kf6 {[%clk 0:00:23]}  Kh6 {[%clk 0:00:05]} 61. Ne7 {[%clk 0:00:23]}  Kh7 {[%clk 0:00:05]} 62. Nd5 {[%clk 0:00:22]}  Bb8 {[%clk 0:00:05]} 63. Kf7 {[%clk 0:00:22]}  Kh8 {[%clk 0:00:05]} 64. Nf6 {[%clk 0:00:21]}  Bh2 {[%clk 0:00:05]} 65. Ne8 {[%clk 0:00:18]}  Bg3 {[%clk 0:00:05]} 66. Ng7 {[%clk 0:00:18]}  Bh2 {[%clk 0:00:05]} 67. Ne6 {[%clk 0:00:18]}  Bg3 {[%clk 0:00:05]} 68. Nf8 {[%clk 0:00:19]}  Bh2 {[%clk 0:00:05]} 69. Ng6+ {[%clk 0:00:17]}  Kh7 {[%clk 0:00:04]} 70. Nh4 {[%clk 0:00:18]}  Bg3 {[%clk 0:00:03]} 71. Nf5 {[%clk 0:00:18]}  Bh2 {[%clk 0:00:04]} 72. Kf6 {[%clk 0:00:18]}  Kg8 {[%clk 0:00:04]} 73. Ke7 {[%clk 0:00:18]}  Kh8 {[%clk 0:00:04]} 74. Kf7 {[%clk 0:00:17]}  Be5 {[%clk 0:00:03]} 75. Nh6 {[%clk 0:00:17]}  Bh2 {[%clk 0:00:04]} 76. Ng4 {[%clk 0:00:18]}  Bg3 {[%clk 0:00:04]} 77. Kg6 {[%clk 0:00:18]}  Kg8 {[%clk 0:00:03]} 78. Nf6+ {[%clk 0:00:18]}  Kh8 {[%clk 0:00:04]} 79. Nh5 {[%clk 0:00:19]}  Bh2 {[%clk 0:00:04]} 80. Kf7 {[%clk 0:00:19]}  Kh7 {[%clk 0:00:04]} 81. Nf6+ {[%clk 0:00:19]}  Kh8 {[%clk 0:00:05]} 82. Ng4 {[%clk 0:00:19]}  Bg3 {[%clk 0:00:05]} 83. Kf6 {[%clk 0:00:19]}  Kg8 {[%clk 0:00:04]} 84. Nh6+ {[%clk 0:00:19]}  Kh8 {[%clk 0:00:05]} 85. Nf5 {[%clk 0:00:20]}  Bh2 {[%clk 0:00:05]} 86. Kg5 {[%clk 0:00:19]}  Be5 {[%clk 0:00:05]} 87. Nh6 {[%clk 0:00:19]}  Bh2 {[%clk 0:00:05]} 88. Ng4 {[%clk 0:00:18]}  Bc7 {[%clk 0:00:04]} 89. Kf5 {[%clk 0:00:18]}  Kg8 {[%clk 0:00:04]} 90. Ke6 {[%clk 0:00:19]}  Kh8 {[%clk 0:00:04]} 91. Kd7 {[%clk 0:00:19]}  Bf4 {[%clk 0:00:05]} 92. Ke7 {[%clk 0:00:17]}  Bg3 {[%clk 0:00:05]} 93. Nf6 {[%clk 0:00:17]}  Bh2 {[%clk 0:00:04]} 94. Nh5 {[%clk 0:00:17]}  Kg8 {[%clk 0:00:04]} 95. Nf6+ {[%clk 0:00:17]}  Kh8 {[%clk 0:00:04]} 96. Ng4 {[%clk 0:00:17]}  Bg3 {[%clk 0:00:03]} 97. Kf7 {[%clk 0:00:18]}  Bf4 {[%clk 0:00:03]} 98. Nf6 {[%clk 0:00:18]}  Bh2 {[%clk 0:00:03]} 1/2-1/2


[Site "https://www.chess.com"]

[Event "Titled Tuesday Blitz July 4 Early 2023"]
[White "Koshulyan, Egor A."]
[Black "Rodchenkov, Sergey D."]
[WhiteFideId "24237000"]
[BlackFideId "4168712"]
[WhiteElo "2699"]
[BlackElo "2535"]
[Result "0-1"]
[Round "4"]
[TimeControl "180+2"]
[Date "2023.07.04"]
[WhiteClock "0:00:29"]
[BlackClock "0:00:24"]
[Board "69"]

1. f4 {[%clk 0:02:57]}  d5 {[%clk 0:02:57]} 2. Nf3 {[%clk 0:02:58]}  Nf6 {[%clk 0:02:57]} 3. g3 {[%clk 0:02:58]}  Bf5 {[%clk 0:02:52]} 4. Bg2 {[%clk 0:02:58]}  h6 {[%clk 0:02:52]} 5. O-O {[%clk 0:02:58]}  e6 {[%clk 0:02:50]} 6. Nc3 {[%clk 0:02:59]}  Nbd7 {[%clk 0:02:51]} 7. d3 {[%clk 0:02:59]}  Be7 {[%clk 0:02:44]} 8. Nh4 {[%clk 0:02:54]}  Bh7 {[%clk 0:02:43]} 9. e4 {[%clk 0:02:54]}  c6 {[%clk 0:02:42]} 10. e5 {[%clk 0:02:46]}  Ng8 {[%clk 0:02:42]} 11. Nf3 {[%clk 0:02:47]}  Bc5+ {[%clk 0:02:42]} 12. d4 {[%clk 0:02:47]}  Bb6 {[%clk 0:02:43]} 13. Ne2 {[%clk 0:02:48]}  Ne7 {[%clk 0:02:40]} 14. Kh1 {[%clk 0:02:43]}  c5 {[%clk 0:02:32]} 15. c3 {[%clk 0:02:43]}  Be4 {[%clk 0:02:31]} 16. g4 {[%clk 0:02:41]}  h5 {[%clk 0:02:28]} 17. g5 {[%clk 0:02:41]}  h4 {[%clk 0:02:24]} 18. h3 {[%clk 0:02:41]}  Nf5 {[%clk 0:02:23]} 19. Kh2 {[%clk 0:02:39]}  g6 {[%clk 0:02:09]} 20. Ne1 {[%clk 0:02:38]}  Bxg2 {[%clk 0:02:09]} 21. Nxg2 {[%clk 0:02:39]}  Kf8 {[%clk 0:02:07]} 22. Ne3 {[%clk 0:02:28]}  Kg7 {[%clk 0:02:07]} 23. Ng4 {[%clk 0:02:28]}  cxd4 {[%clk 0:01:57]} 24. cxd4 {[%clk 0:02:29]}  Rc8 {[%clk 0:01:56]} 25. Nf6 {[%clk 0:02:27]}  Nxf6 {[%clk 0:01:49]} 26. gxf6+ {[%clk 0:02:27]}  Kh7 {[%clk 0:01:50]} 27. Qd3 {[%clk 0:02:18]}  Qc7 {[%clk 0:01:46]} 28. Qf3 {[%clk 0:02:03]}  Qc2 {[%clk 0:01:39]} 29. Be3 {[%clk 0:01:58]}  Qe4 {[%clk 0:01:21]} 30. Bd2 {[%clk 0:01:17]}  Rc2 {[%clk 0:01:08]} 31. Rad1 {[%clk 0:01:17]}  Qxf3 {[%clk 0:00:58]} 32. Rxf3 {[%clk 0:01:17]}  Rxb2 {[%clk 0:00:49]} 33. Rd3 {[%clk 0:01:08]}  Rc8 {[%clk 0:00:47]} 34. Kh1 {[%clk 0:00:52]}  Rc4 {[%clk 0:00:40]} 35. Ng1 {[%clk 0:00:50]}  Rxd4 {[%clk 0:00:28]} 36. Rxd4 {[%clk 0:00:46]}  Bxd4 {[%clk 0:00:29]} 37. Nf3 {[%clk 0:00:44]}  Bc5 {[%clk 0:00:25]} 38. Ng5+ {[%clk 0:00:43]}  Kg8 {[%clk 0:00:26]} 39. Be1 {[%clk 0:00:43]}  b6 {[%clk 0:00:26]} 40. Nf3 {[%clk 0:00:30]}  Ng3+ {[%clk 0:00:24]} 41. Bxg3 {[%clk 0:00:31]}  hxg3 {[%clk 0:00:25]} 42. Nh4 {[%clk 0:00:29]}  Rh2# {[%clk 0:00:24]} 0-1


[Site "https://www.chess.com"]

[Event "Titled Tuesday Blitz July 4 Early 2023"]
[White "Goryachkina, Aleksandra"]
[Black "Trifan, Andrei Ioan"]
[WhiteFideId "4147103"]
[BlackFideId "12967068"]
[WhiteElo "2688"]
[BlackElo "2534"]
[Result "1-0"]
[Round "4"]
[TimeControl "180+2"]
[Date "2023.07.04"]
[WhiteClock "0:00:02"]
[BlackClock "0:00:07"]
[Board "70"]

1. e4 {[%clk 0:02:57]}  e5 {[%clk 0:02:58]} 2. Nf3 {[%clk 0:02:57]}  Nc6 {[%clk 0:02:58]} 3. d4 {[%clk 0:02:54]}  exd4 {[%clk 0:02:58]} 4. Nxd4 {[%clk 0:02:55]}  Bc5 {[%clk 0:02:54]} 5. Be3 {[%clk 0:02:45]}  Qf6 {[%clk 0:02:52]} 6. c3 {[%clk 0:02:45]}  Nge7 {[%clk 0:02:49]} 7. Bb5 {[%clk 0:02:39]}  O-O {[%clk 0:02:35]} 8. O-O {[%clk 0:02:39]}  Bb6 {[%clk 0:02:29]} 9. a4 {[%clk 0:02:37]}  d5 {[%clk 0:02:19]} 10. Bxc6 {[%clk 0:02:25]}  bxc6 {[%clk 0:02:06]} 11. a5 {[%clk 0:02:22]}  Bc5 {[%clk 0:02:03]} 12. e5 {[%clk 0:02:15]}  Qxe5 {[%clk 0:01:46]} 13. Nxc6 {[%clk 0:02:14]}  Nxc6 {[%clk 0:01:39]} 14. Bxc5 {[%clk 0:02:13]}  Rd8 {[%clk 0:01:39]} 15. Re1 {[%clk 0:02:07]}  Qf6 {[%clk 0:01:34]} 16. Nd2 {[%clk 0:02:05]}  Bf5 {[%clk 0:01:29]} 17. Nb3 {[%clk 0:01:57]}  a6 {[%clk 0:01:21]} 18. Nd4 {[%clk 0:01:50]}  Be4 {[%clk 0:01:15]} 19. f3 {[%clk 0:01:45]}  Bg6 {[%clk 0:01:12]} 20. Qe2 {[%clk 0:01:41]}  h6 {[%clk 0:01:07]} 21. b4 {[%clk 0:01:35]}  Kh7 {[%clk 0:01:02]} 22. h3 {[%clk 0:01:08]}  Rd7 {[%clk 0:00:47]} 23. b5 {[%clk 0:00:59]}  Nd8 {[%clk 0:00:27]} 24. Be7 {[%clk 0:00:45]}  Qf4 {[%clk 0:00:25]} 25. bxa6 {[%clk 0:00:34]}  Ne6 {[%clk 0:00:10]} 26. Nxe6 {[%clk 0:00:32]}  fxe6 {[%clk 0:00:11]} 27. Qxe6 {[%clk 0:00:31]}  Bf5 {[%clk 0:00:11]} 28. Qc6 {[%clk 0:00:25]}  Ra7 {[%clk 0:00:08]} 29. Bc5 {[%clk 0:00:21]}  Qc4 {[%clk 0:00:08]} 30. Qxd7 {[%clk 0:00:10]}  Bxd7 {[%clk 0:00:08]} 31. Bxa7 {[%clk 0:00:09]}  Qxa6 {[%clk 0:00:09]} 32. Bd4 {[%clk 0:00:09]}  Bc8 {[%clk 0:00:09]} 33. Re7 {[%clk 0:00:08]}  Kg6 {[%clk 0:00:08]} 34. Rxg7+ {[%clk 0:00:08]}  Kh5 {[%clk 0:00:09]} 35. Rxc7 {[%clk 0:00:08]}  Be6 {[%clk 0:00:07]} 36. Re1 {[%clk 0:00:06]}  Bxh3 {[%clk 0:00:07]} 37. gxh3 {[%clk 0:00:05]}  Qg6+ {[%clk 0:00:08]} 38. Kh2 {[%clk 0:00:04]}  Qd6+ {[%clk 0:00:08]} 39. Be5 {[%clk 0:00:04]}  Qa3 {[%clk 0:00:09]} 40. Rg7 {[%clk 0:00:02]}  Qxa5 {[%clk 0:00:07]} 41. Rg2 {[%clk 0:00:02]}  Qd8 {[%clk 0:00:07]} 42. Ree2 {[%clk 0:00:02]}  Qf8 {[%clk 0:00:06]} 43. f4 {[%clk 0:00:03]}  Qf5 {[%clk 0:00:07]} 44. Rd2 {[%clk 0:00:03]}  Qd3 {[%clk 0:00:07]} 45. Rxd3 {[%clk 0:00:02]} 1-0


[Site "https://www.chess.com"]

[Event "Titled Tuesday Blitz July 4 Early 2023"]
[White "Antonio, Rogelio Jr"]
[Black "Sreyas Payyappat"]
[WhiteFideId "5200032"]
[BlackFideId "46674969"]
[WhiteElo "2688"]
[BlackElo "2533"]
[Result "1-0"]
[Round "4"]
[TimeControl "180+2"]
[Date "2023.07.04"]
[WhiteClock "0:02:13"]
[BlackClock "0:02:11"]
[Board "71"]

1. e4 {[%clk 0:02:59]}  c6 {[%clk 0:02:59]} 2. Nc3 {[%clk 0:02:57]}  d5 {[%clk 0:03:00]} 3. Nf3 {[%clk 0:02:57]}  dxe4 {[%clk 0:03:01]} 4. Nxe4 {[%clk 0:02:57]}  Nf6 {[%clk 0:03:02]} 5. Qe2 {[%clk 0:02:58]}  Nxe4 {[%clk 0:03:00]} 6. Qxe4 {[%clk 0:02:58]}  Nd7 {[%clk 0:03:01]} 7. Bc4 {[%clk 0:02:57]}  Nf6 {[%clk 0:03:02]} 8. Ne5 {[%clk 0:02:57]}  e6 {[%clk 0:03:03]} 9. Qe2 {[%clk 0:02:58]}  b5 {[%clk 0:03:03]} 10. Bb3 {[%clk 0:02:56]}  Qc7 {[%clk 0:03:04]} 11. d4 {[%clk 0:02:56]}  Bd6 {[%clk 0:03:04]} 12. Bf4 {[%clk 0:02:55]}  Bb7 {[%clk 0:03:04]} 13. O-O {[%clk 0:02:54]}  O-O {[%clk 0:03:04]} 14. a4 {[%clk 0:02:54]}  a6 {[%clk 0:03:02]} 15. Rad1 {[%clk 0:02:48]}  Rfd8 {[%clk 0:02:51]} 16. Rfe1 {[%clk 0:02:47]}  Nd7 {[%clk 0:02:51]} 17. Nxf7 {[%clk 0:02:40]}  Bxf4 {[%clk 0:02:50]} 18. Qxe6 {[%clk 0:02:39]}  Bxh2+ {[%clk 0:02:49]} 19. Kh1 {[%clk 0:02:38]}  Nc5 {[%clk 0:02:23]} 20. dxc5 {[%clk 0:02:30]}  Rxd1 {[%clk 0:02:11]} 21. Nd8+ {[%clk 0:02:13]} 1-0


[Site "https://www.chess.com"]

[Event "Titled Tuesday Blitz July 4 Early 2023"]
[White "Quintiliano Pinto, Renato R."]
[Black "Bethke, Richard"]
[WhiteFideId "2117568"]
[BlackFideId "12959243"]
[WhiteElo "2685"]
[BlackElo "2533"]
[Result "1-0"]
[Round "4"]
[TimeControl "180+2"]
[Date "2023.07.04"]
[WhiteClock "0:01:40"]
[BlackClock "0:01:45"]
[Board "72"]

1. e4 {[%clk 0:03:00]}  c6 {[%clk 0:02:47]} 2. d4 {[%clk 0:02:59]}  d5 {[%clk 0:02:48]} 3. exd5 {[%clk 0:02:56]}  cxd5 {[%clk 0:02:48]} 4. Bd3 {[%clk 0:02:56]}  Nc6 {[%clk 0:02:48]} 5. c3 {[%clk 0:02:56]}  e5 {[%clk 0:02:48]} 6. dxe5 {[%clk 0:02:55]}  Nxe5 {[%clk 0:02:49]} 7. Nf3 {[%clk 0:02:55]}  Nxd3+ {[%clk 0:02:48]} 8. Qxd3 {[%clk 0:02:56]}  Nf6 {[%clk 0:02:49]} 9. O-O {[%clk 0:02:55]}  Be7 {[%clk 0:02:49]} 10. Nbd2 {[%clk 0:02:55]}  O-O {[%clk 0:02:50]} 11. Nb3 {[%clk 0:02:55]}  Bg4 {[%clk 0:02:44]} 12. Nbd4 {[%clk 0:02:49]}  Ne4 {[%clk 0:02:44]} 13. Be3 {[%clk 0:02:46]}  a6 {[%clk 0:02:40]} 14. Rad1 {[%clk 0:02:26]}  Rc8 {[%clk 0:02:37]} 15. h3 {[%clk 0:02:24]}  Bh5 {[%clk 0:02:36]} 16. Nf5 {[%clk 0:02:24]}  Bxf3 {[%clk 0:02:31]} 17. gxf3 {[%clk 0:02:24]}  Nf6 {[%clk 0:02:31]} 18. Bg5 {[%clk 0:02:17]}  Rc5 {[%clk 0:02:23]} 19. Rfe1 {[%clk 0:02:05]}  Re8 {[%clk 0:02:12]} 20. Rxe7 {[%clk 0:02:01]}  Rxe7 {[%clk 0:02:13]} 21. Bxf6 {[%clk 0:02:01]}  gxf6 {[%clk 0:02:07]} 22. Qd4 {[%clk 0:01:41]}  Kf8 {[%clk 0:01:45]} 23. Qxc5 {[%clk 0:01:40]} 1-0


[Site "https://www.chess.com"]

[Event "Titled Tuesday Blitz July 4 Early 2023"]
[White "Stoleriu, George"]
[Black "Papayan, Oleg"]
[WhiteFideId "1227505"]
[BlackFideId "4193911"]
[WhiteElo "2673"]
[BlackElo "2529"]
[Result "0-1"]
[Round "4"]
[TimeControl "180+2"]
[Date "2023.07.04"]
[WhiteClock "0:00:07"]
[BlackClock "0:00:09"]
[Board "77"]

1. e4 {[%clk 0:03:00]}  e5 {[%clk 0:03:00]} 2. Nf3 {[%clk 0:03:00]}  Nc6 {[%clk 0:03:00]} 3. Bb5 {[%clk 0:03:01]}  Nf6 {[%clk 0:03:00]} 4. d3 {[%clk 0:03:01]}  Bc5 {[%clk 0:03:00]} 5. O-O {[%clk 0:03:01]}  Nd4 {[%clk 0:03:01]} 6. Nxd4 {[%clk 0:03:01]}  Bxd4 {[%clk 0:03:01]} 7. Be3 {[%clk 0:03:02]}  Bb6 {[%clk 0:02:59]} 8. Nc3 {[%clk 0:03:01]}  c6 {[%clk 0:02:59]} 9. Ba4 {[%clk 0:03:01]}  O-O {[%clk 0:02:58]} 10. Bb3 {[%clk 0:03:00]}  d5 {[%clk 0:02:57]} 11. exd5 {[%clk 0:02:58]}  Nxd5 {[%clk 0:02:50]} 12. Bxd5 {[%clk 0:02:49]}  cxd5 {[%clk 0:02:51]} 13. Bxb6 {[%clk 0:02:49]}  Qxb6 {[%clk 0:02:38]} 14. b3 {[%clk 0:02:37]}  Be6 {[%clk 0:02:33]} 15. Qe2 {[%clk 0:02:36]}  f6 {[%clk 0:02:17]} 16. Na4 {[%clk 0:02:34]}  Qd4 {[%clk 0:02:07]} 17. c3 {[%clk 0:02:34]}  Qg4 {[%clk 0:01:58]} 18. f3 {[%clk 0:02:34]}  Qh5 {[%clk 0:01:52]} 19. d4 {[%clk 0:02:24]}  Rae8 {[%clk 0:01:39]} 20. Rae1 {[%clk 0:02:22]}  exd4 {[%clk 0:01:32]} 21. cxd4 {[%clk 0:02:22]}  Bd7 {[%clk 0:01:28]} 22. Qd3 {[%clk 0:02:21]}  Bxa4 {[%clk 0:01:28]} 23. bxa4 {[%clk 0:02:19]}  Rxe1 {[%clk 0:01:14]} 24. Rxe1 {[%clk 0:02:20]}  Re8 {[%clk 0:01:14]} 25. Rb1 {[%clk 0:02:11]}  b6 {[%clk 0:01:11]} 26. h3 {[%clk 0:02:06]}  Qg5 {[%clk 0:01:11]} 27. Rb5 {[%clk 0:02:01]}  Qc1+ {[%clk 0:01:05]} 28. Kh2 {[%clk 0:02:00]}  Re1 {[%clk 0:01:01]} 29. Qf5 {[%clk 0:01:49]}  Rh1+ {[%clk 0:00:53]} 30. Kg3 {[%clk 0:01:48]}  Qc7+ {[%clk 0:00:45]} 31. Kg4 {[%clk 0:01:30]}  Rg1 {[%clk 0:00:33]} 32. Qxd5+ {[%clk 0:01:25]}  Kf8 {[%clk 0:00:33]} 33. f4 {[%clk 0:01:24]}  Qc8+ {[%clk 0:00:20]} 34. Kh4 {[%clk 0:01:17]}  Qc1 {[%clk 0:00:12]} 35. Qd8+ {[%clk 0:00:27]}  Kf7 {[%clk 0:00:12]} 36. Qd7+ {[%clk 0:00:27]}  Kf8 {[%clk 0:00:07]} 37. Qg4 {[%clk 0:00:21]}  Qe1+ {[%clk 0:00:04]} 38. g3 {[%clk 0:00:22]}  Qe7 {[%clk 0:00:04]} 39. Rd5 {[%clk 0:00:15]}  h6 {[%clk 0:00:04]} 40. Qf5 {[%clk 0:00:11]}  g5+ {[%clk 0:00:02]} 41. Kg4 {[%clk 0:00:10]}  gxf4 {[%clk 0:00:03]} 42. Qxf4 {[%clk 0:00:09]}  Re1 {[%clk 0:00:02]} 43. Qb8+ {[%clk 0:00:07]}  Kg7 {[%clk 0:00:02]} 44. Rf5 {[%clk 0:00:04]}  Re4+ {[%clk 0:00:02]} 45. Rf4 {[%clk 0:00:05]}  Re3 {[%clk 0:00:02]} 46. Qc8 {[%clk 0:00:04]}  Qe6+ {[%clk 0:00:02]} 47. Qxe6 {[%clk 0:00:05]}  Rxe6 {[%clk 0:00:03]} 48. d5 {[%clk 0:00:05]}  Rd6 {[%clk 0:00:03]} 49. Rd4 {[%clk 0:00:06]}  Kg6 {[%clk 0:00:03]} 50. Kf4 {[%clk 0:00:06]}  h5 {[%clk 0:00:03]} 51. h4 {[%clk 0:00:07]}  a6 {[%clk 0:00:03]} 52. a3 {[%clk 0:00:07]}  b5 {[%clk 0:00:03]} 53. Ke4 {[%clk 0:00:08]}  bxa4 {[%clk 0:00:02]} 54. Rxa4 {[%clk 0:00:08]}  Rb6 {[%clk 0:00:02]} 55. Rb4 {[%clk 0:00:09]}  Rd6 {[%clk 0:00:02]} 56. Kd4 {[%clk 0:00:09]}  Kf5 {[%clk 0:00:02]} 57. Kc5 {[%clk 0:00:10]}  Rd8 {[%clk 0:00:02]} 58. d6 {[%clk 0:00:10]}  Ke6 {[%clk 0:00:02]} 59. Re4+ {[%clk 0:00:10]}  Kf5 {[%clk 0:00:02]} 60. Kc6 {[%clk 0:00:09]}  Kxe4 {[%clk 0:00:02]} 61. Kc7 {[%clk 0:00:10]}  Rg8 {[%clk 0:00:02]} 62. d7 {[%clk 0:00:11]}  Kf3 {[%clk 0:00:02]} 63. d8=Q {[%clk 0:00:09]}  Rxd8 {[%clk 0:00:03]} 64. Kxd8 {[%clk 0:00:10]}  Kxg3 {[%clk 0:00:04]} 65. a4 {[%clk 0:00:10]}  f5 {[%clk 0:00:05]} 66. a5 {[%clk 0:00:11]}  f4 {[%clk 0:00:06]} 67. Kc7 {[%clk 0:00:11]}  f3 {[%clk 0:00:07]} 68. Kb7 {[%clk 0:00:12]}  f2 {[%clk 0:00:08]} 69. Kxa6 {[%clk 0:00:13]}  f1=Q+ {[%clk 0:00:08]} 70. Kb7 {[%clk 0:00:14]}  Qb5+ {[%clk 0:00:09]} 71. Kc7 {[%clk 0:00:07]}  Qxa5+ {[%clk 0:00:09]} 0-1


[Site "https://www.chess.com"]